bitfinex/quotes_BTCUSD_20251007
["timestamp","ask_amount","ask_price","bid_price","bid_amount"]
[1759821059493,0.70410941,123950.0,123940.0,0.00319972]
[1759821059697,0.93242941,123950.0,123940.0,0.00319972]
[1759821060283,0.70410941,123950.0,123940.0,0.00319972]
[1759821060685,0.93242941,123950.0,123940.0,0.00319972]
[1759821061074,0.70410941,123950.0,123940.0,0.00319972]
[1759821061270,0.93238941,123950.0,123940.0,0.00319972]
[1759821065625,0.91731284,123950.0,123940.0,0.00319972]
[1759821065808,0.9323334,123950.0,123940.0,0.00319972]
[1759821066583,0.7040534,123950.0,123940.0,0.00319972]
[1759821066721,0.9322934,123950.0,123940.0,0.00319972]
[1759821068747,1.4346176,123950.0,123940.0,0.00319972]
[1759821077721,1.43462792,123950.0,123940.0,0.00319972]
[1759821077892,1.43462792,123950.0,123940.0,1e-08]
[1759821078098,1.46477982,123950.0,123940.0,1e-08]
[1759821078296,2.00946069,123950.0,123940.0,1e-08]
[1759821078499,1.27889649,123950.0,123940.0,1e-08]
[1759821078702,1.59097649,123950.0,123940.0,1e-08]
[1759821079153,0.16140747,123910.0,123900.0,0.06536749]
[1759821079367,0.50411418,123910.0,123900.0,0.06551712]
[1759821079587,0.5041668,123910.0,123900.0,0.06551712]
[1759821079797,0.5041668,123910.0,123900.0,0.06749712]
[1759821080302,0.5041668,123910.0,123900.0,0.00212963]
[1759821080899,0.5122468,123910.0,123900.0,0.00214963]
[1759821081042,0.5122468,123910.0,123900.0,0.00314963]
[1759821081249,0.5132468,123910.0,123900.0,0.00314963]
[1759821082088,0.5132468,123910.0,123900.0,0.00512963]
[1759821082287,0.5132468,123910.0,123900.0,0.00833963]
[1759821082692,0.5132468,123910.0,123900.0,0.00512963]
[1759821083213,0.5164368,123910.0,123900.0,0.00314963]
[1759821083617,0.5163968,123910.0,123900.0,0.00314963]
[1759821084578,0.5132068,123910.0,123900.0,0.00314963]
[1759821084793,0.5132068,123910.0,123900.0,0.00394881]
[1759821085017,0.5163968,123910.0,123900.0,0.00394881]
[1759821085446,0.5132068,123910.0,123900.0,0.00394881]
[1759821085649,0.5132068,123910.0,123900.0,0.00592881]
[1759821085993,0.5132068,123910.0,123900.0,0.00394881]
[1759821086364,0.5132068,123910.0,123900.0,0.00592881]
[1759821086365,0.2850468,123910.0,123900.0,0.00592881]
[1759821086598,0.5131668,123910.0,123900.0,0.00394881]
[1759821087007,0.5110868,123910.0,123900.0,0.00913881]
[1759821087385,0.5131668,123910.0,123900.0,0.00592881]
[1759821087562,0.5131668,123910.0,123900.0,0.00394881]
[1759821090304,0.5131668,123910.0,123900.0,0.00592881]
[1759821090627,0.5131668,123910.0,123900.0,0.00394881]
[1759821092513,0.50221163,123910.0,123900.0,0.00906881]
[1759821093436,0.50435163,123910.0,123900.0,0.00604881]
[1759821093670,0.5021974,123910.0,123900.0,0.00906881]
[1759821094075,0.5043374,123910.0,123900.0,0.00394881]
[1759821095357,0.5074074,123910.0,123900.0,0.00394881]
[1759821095509,0.5561662,123910.0,123900.0,0.00394881]
[1759821095915,0.5592362,123910.0,123900.0,0.00394881]
[1759821096117,0.5561662,123910.0,123900.0,0.00394881]
[1759821096605,0.5540262,123910.0,123900.0,0.00906881]
[1759821097063,0.5561662,123910.0,123900.0,0.00604881]
[1759821097436,0.5561662,123910.0,123900.0,0.00926881]
[1759821097658,0.5561662,123910.0,123900.0,0.00604881]
[1759821098064,0.5540262,123910.0,123900.0,0.00604881]
[1759821098265,0.5540262,123910.0,123900.0,0.00926881]
[1759821098615,0.5559862,123910.0,123900.0,0.00394881]
[1759821098840,0.5559462,123910.0,123900.0,0.00394881]
[1759821099136,0.5559462,123910.0,123900.0,0.00608881]
[1759821099336,0.5559462,123910.0,123900.0,0.00930881]
[1759821099578,0.5559462,123910.0,123900.0,0.00608881]
[1759821099901,0.5539862,123910.0,123900.0,0.00608881]
[1759821100058,0.5539862,123910.0,123900.0,0.00930881]
[1759821100263,0.54841728,123910.0,123900.0,0.00930881]
[1759821100478,0.54841728,123910.0,123900.0,0.00608881]
[1759821100692,0.54841728,123910.0,123900.0,0.00394881]
[1759821100871,0.55144728,123910.0,123900.0,0.00394881]
[1759821101052,0.55898408,123910.0,123900.0,0.00394881]
[1759821101272,0.54841728,123910.0,123900.0,0.00394881]
[1759821101490,0.54837728,123910.0,123900.0,0.00394881]
[1759821102001,0.55140728,123910.0,123900.0,0.00394881]
[1759821103963,0.54837728,123910.0,123900.0,0.00394881]
[1759821104492,0.55140728,123910.0,123900.0,0.00394881]
[1759821105142,0.53331833,123910.0,123900.0,0.00394881]
[1759821105584,0.53634833,123910.0,123900.0,0.00394881]
[1759821106021,0.53331833,123910.0,123900.0,0.00394881]
[1759821106228,0.53634833,123910.0,123900.0,0.00394881]
[1759821106448,0.48451953,123910.0,123900.0,0.00394881]
[1759821106881,0.49960956,123910.0,123900.0,0.00394881]
[1759821107090,0.48451953,123910.0,123900.0,0.00394881]
[1759821107329,1.00241495,123910.0,123900.0,0.00394881]
[1759821107751,1.00996301,123910.0,123900.0,0.00394881]
[1759821107910,1.08995981,123910.0,123900.0,0.00394881]
[1759821108127,1.08241175,123910.0,123900.0,0.00394881]
[1759821109673,0.57961295,123910.0,123900.0,0.00394881]
[1759821109901,1.08241175,123910.0,123900.0,0.00394881]
[1759821110346,1.08241345,123910.0,123900.0,0.00394881]
[1759821116884,1.08240616,123910.0,123900.0,0.00394881]
[1759821119223,1.08240419,123910.0,123900.0,0.00394881]
[1759821119456,1.42240419,123910.0,123900.0,0.00394881]
[1759821119667,1.42994846,123910.0,123900.0,0.00394881]
[1759821119979,1.20194846,123910.0,123900.0,0.00394881]
[1759821120180,0.92714966,123910.0,123900.0,0.00394881]
[1759821120455,0.92411966,123910.0,123900.0,0.00394881]
[1759821120675,0.92714966,123910.0,123900.0,0.00394881]
[1759821121706,1.42994846,123910.0,123900.0,0.00394881]
[1759821121915,1.20194846,123910.0,123900.0,0.00394881]
[1759821122089,1.42994846,123910.0,123900.0,0.00394881]
[1759821123866,0.92714966,123910.0,123900.0,0.00394881]
[1759821124074,1.42994846,123910.0,123900.0,0.00394881]
[1759821124890,1.42994541,123910.0,123900.0,0.00394881]
[1759821125565,1.3385465,123910.0,123900.0,0.00394881]
[1759821126840,1.1105465,123910.0,123900.0,0.00394881]
[1759821127063,1.3385465,123910.0,123900.0,0.00394881]
[1759821131974,1.33854518,123910.0,123900.0,0.00394881]
[1759821135190,1.84134398,123910.0,123900.0,0.00394881]
[1759821135360,1.92134078,123910.0,123900.0,0.00394881]
[1759821136468,1.94449268,123910.0,123900.0,0.00094881]
[1759821136692,2.38829268,123910.0,123900.0,0.00094881]
[1759821136912,2.39929268,123910.0,123900.0,0.00394881]
[1759821137139,2.39129268,123910.0,123900.0,0.00094881]
[1759821137579,2.41729268,123910.0,123900.0,0.00394881]
[1759821137974,2.41728212,123910.0,123900.0,0.00394881]
[1759821138170,2.4172815,123910.0,123900.0,0.00394881]
[1759821138738,2.4312815,123910.0,123900.0,0.00394881]
[1759821142828,2.43128006,123910.0,123900.0,0.00394881]
[1759821143029,2.41620156,123910.0,123900.0,0.00394881]
[1759821143284,2.43127869,123910.0,123900.0,0.00394881]
[1759821146603,2.43127869,123910.0,123900.0,1e-08]
[1759821148459,2.4312827,123910.0,123900.0,1e-08]
[1759821149926,2.9670815,123910.0,123900.0,1e-08]
[1759821150074,2.98445379,123910.0,123900.0,1e-08]
[1759821150290,2.44598379,123910.0,123900.0,1e-08]
[1759821150492,3.19358379,123910.0,123900.0,1e-08]
[1759821150709,3.21782048,123910.0,123900.0,1e-08]
[1759821151115,3.20982048,123910.0,123900.0,1e-08]
[1759821154521,3.12590048,123910.0,123900.0,1e-08]
[1759821154727,3.20982048,123910.0,123900.0,1e-08]
[1759821155154,2.7079265,123910.0,123900.0,1e-08]
[1759821155557,2.7159265,123910.0,123900.0,1e-08]
[1759821155773,2.0683265,123910.0,123900.0,1e-08]
[1759821156089,2.7159665,123910.0,123900.0,1e-08]
[1759821156469,3.5018705,123910.0,123900.0,1e-08]
[1759821157389,0.16144656,123880.0,123870.0,0.0002]
[1759821157548,1.11766318,123880.0,123870.0,0.00024976]
[1759821157763,1.12279318,123880.0,123870.0,0.00024976]
[1759821157931,1.13079318,123880.0,123870.0,0.00084938]
[1759821158779,1.19342758,123880.0,123870.0,0.00084938]
[1759821159302,1.19742758,123880.0,123870.0,0.00084938]
[1759821160288,1.22757948,123880.0,123870.0,0.00084938]
[1759821160495,0.82605637,123880.0,123870.0,0.00296938]
[1759821160693,1.13284637,123880.0,123870.0,0.00620938]
[1759821160917,1.097542,123880.0,123870.0,0.00620938]
[1759821161383,1.099662,123880.0,123870.0,0.00084938]
[1759821161591,1.60592321,123880.0,123870.0,0.00084938]
[1759821162884,1.29400321,123880.0,123870.0,0.00084938]
[1759821163078,1.57383201,123880.0,123870.0,0.00084938]
[1759821163281,1.65775201,123880.0,123870.0,0.00084938]
[1759821164734,1.65478201,123880.0,123870.0,0.00296938]
[1759821164961,1.65779201,123880.0,123870.0,0.00084938]
[1759821166489,1.68794391,123880.0,123870.0,0.00084938]
[1759821167297,1.77239512,123880.0,123870.0,1e-08]
[1759821167713,1.26914391,123880.0,123870.0,1e-08]
[1759821168114,1.27237597,123880.0,123870.0,1e-08]
[1759821168595,0.96041597,123880.0,123870.0,1e-08]
[1759821168827,1.27237597,123880.0,123870.0,1e-08]
[1759821169387,1.27236339,123880.0,123870.0,1e-08]
[1759821169875,1.28025701,123880.0,123870.0,1e-08]
[1759821171286,0.7739958,123880.0,123870.0,1e-08]
[1759821171465,1.27724701,123880.0,123870.0,1e-08]
[1759821171871,1.28025701,123880.0,123870.0,1e-08]
[1759821175737,1.27225701,123880.0,123870.0,1e-08]
[1759821176275,1.32067701,123880.0,123870.0,1e-08]
[1759821176503,0.53166948,123870.0,123860.0,0.0002]
[1759821176731,0.94551474,123870.0,123860.0,0.00028041]
[1759821176948,0.95064474,123870.0,123860.0,0.00028041]
[1759821177157,0.86875794,123870.0,123860.0,0.00564041]
[1759821177354,0.95267794,123870.0,123860.0,0.00564041]
[1759821177872,0.95679794,123870.0,123860.0,0.00028041]
[1759821178124,0.65376794,123870.0,123860.0,0.00028041]
[1759821178348,0.84660604,123870.0,123860.0,0.00564041]
[1759821179088,0.62060604,123870.0,123860.0,0.00028041]
[1759821179302,0.84868604,123870.0,123860.0,0.00028041]
[1759821179503,0.85169604,123870.0,123860.0,0.00028041]
[1759821179698,0.84868604,123870.0,123860.0,0.00028041]
[1759821179924,0.70060284,123870.0,123860.0,0.00028041]
[1759821180124,0.92868284,123870.0,123860.0,0.00028041]
[1759821180348,0.93169284,123870.0,123860.0,0.00028041]
[1759821181436,0.92868284,123870.0,123860.0,0.00028041]
[1759821181831,0.93183284,123870.0,123860.0,0.00028041]
[1759821182066,0.84868604,123870.0,123860.0,0.00236041]
[1759821182301,0.84868604,123870.0,123860.0,0.00048032]
[1759821182714,0.85183604,123870.0,123860.0,0.00048032]
[1759821183291,0.27848604,123870.0,123860.0,0.00551032]
[1759821183495,0.48067964,123870.0,123860.0,0.00551032]
[1759821188704,0.48062165,123870.0,123860.0,0.00545233]
[1759821190112,0.48062165,123870.0,123860.0,0.00250233]
[1759821190328,0.48062165,123870.0,123860.0,0.00545233]
[1759821191993,0.56061845,123870.0,123860.0,0.00545233]
[1759821192595,0.48062165,123870.0,123860.0,0.00545233]
[1759821192740,0.25258165,123870.0,123860.0,0.00545233]
[1759821192975,0.48062165,123870.0,123860.0,0.00545233]
[1759821194693,0.25258165,123870.0,123860.0,0.00545233]
[1759821194898,0.48062165,123870.0,123860.0,0.00545233]
[1759821195519,0.48062165,123870.0,123860.0,0.16692496]
[1759821197002,0.25258165,123870.0,123860.0,0.00545233]
[1759821199227,0.25258165,123870.0,123860.0,0.00465233]
[1759821200722,0.09112206,123870.0,123860.0,0.16612496]
[1759821200942,0.09112206,123870.0,123860.0,0.19972956]
[1759821201150,0.09112206,123870.0,123860.0,0.22396112]
[1759821201754,0.09112206,123870.0,123860.0,0.19035652]
[1759821202411,0.09112206,123870.0,123860.0,0.41835652]
[1759821202894,0.008,123870.0,123860.0,0.41835652]
[1759821206830,0.008,123870.0,123860.0,0.19035652]
[1759821206979,0.006,123870.0,123860.0,0.50227652]
[1759821207197,0.006,123870.0,123860.0,0.56949628]
[1759821207393,0.001,123870.0,123860.0,0.57049628]
[1759821207822,0.004,123870.0,123860.0,0.57249628]
[1759821211436,0.004,123870.0,123860.0,0.91249628]
[1759821212017,0.004,123870.0,123860.0,0.91253628]
[1759821214559,0.004,123870.0,123860.0,0.82857628]
[1759821214767,0.004,123870.0,123860.0,0.91249628]
[1759821215871,0.004,123870.0,123860.0,0.60057628]
[1759821216073,0.004,123870.0,123860.0,0.84531652]
[1759821221210,0.004,123870.0,123860.0,0.53335652]
[1759821221417,0.004,123870.0,123860.0,0.84523652]
[1759821222334,0.004,123870.0,123860.0,0.19335652]
[1759821222546,0.16755959,123870.0,123860.0,0.19040652]
[1759821222779,0.08922206,123870.0,123860.0,0.41666419]
[1759821222963,0.25068165,123870.0,123860.0,0.41666419]
[1759821223183,0.25068165,123870.0,123860.0,0.41863419]
[1759821223412,0.25068165,123870.0,123860.0,0.42170419]
[1759821223658,0.24858165,123870.0,123860.0,0.42170419]
[1759821223850,0.24858165,123870.0,123860.0,0.19374419]
[1759821224000,0.24858165,123870.0,123860.0,0.42170419]
[1759821224679,0.24858165,123870.0,123860.0,0.19374419]
[1759821224893,0.29173841,123870.0,123860.0,0.02723156]
[1759821225094,0.29173841,123870.0,123860.0,0.003]
[1759821225095,0.29476841,123870.0,123860.0,0.003]
[1759821225306,0.29476841,123870.0,123860.0,0.23096]
[1759821225711,0.29476841,123870.0,123860.0,0.003]
[1759821225881,0.29476841,123870.0,123860.0,0.23096]
[1759821226034,0.29173841,123870.0,123860.0,0.23096]
[1759821228446,0.29173841,123870.0,123860.0,0.23293]
[1759821228447,0.28963841,123870.0,123860.0,0.23293]
[1759821228649,0.28963841,123870.0,123860.0,0.236]
[1759821228875,0.24858165,123870.0,123860.0,0.236]
[1759821229481,0.25068165,123870.0,123860.0,0.23403]
[1759821229715,0.25068165,123870.0,123860.0,0.23096]
[1759821230198,0.25068165,123870.0,123860.0,0.23293]
[1759821230809,0.25068165,123870.0,123860.0,0.23096]
[1759821231198,0.25068165,123870.0,123860.0,0.23293]
[1759821232752,0.25371165,123870.0,123860.0,0.23096]
[1759821233167,0.25068165,123870.0,123860.0,0.003]
[1759821233594,0.25068165,123870.0,123860.0,0.23297]
[1759821233814,0.25068165,123870.0,123860.0,0.231]
[1759821234018,0.25371165,123870.0,123860.0,0.231]
[1759821234602,0.83663101,123870.0,123860.0,0.003]
[1759821236227,1.06463101,123870.0,123860.0,0.003]
[1759821236430,0.56170845,123870.0,123860.0,0.003]
[1759821236552,1.06463101,123870.0,123860.0,0.003]
[1759821240537,0.56170845,123870.0,123860.0,0.003]
[1759821240742,1.06463101,123870.0,123860.0,0.003]
[1759821241569,0.33370845,123870.0,123860.0,0.003]
[1759821241707,0.98463421,123870.0,123860.0,0.003]
[1759821242534,0.25371165,123870.0,123860.0,0.003]
[1759821242762,0.98463421,123870.0,123860.0,0.003]
[1759821244101,0.75663421,123870.0,123860.0,0.003]
[1759821244256,0.98463421,123870.0,123860.0,0.003]
[1759821246000,0.56170845,123870.0,123860.0,0.003]
[1759821246236,1.06463101,123870.0,123860.0,0.003]
[1759821246952,0.56170845,123870.0,123860.0,0.003]
[1759821247148,1.06463101,123870.0,123860.0,0.003]
[1759821251606,0.98463421,123870.0,123860.0,0.003]
[1759821252947,1.88031134,123870.0,123860.0,0.003]
[1759821253149,1.38848403,123870.0,123860.0,0.003]
[1759821253739,1.38848393,123870.0,123860.0,0.003]
[1759821254003,1.16048393,123870.0,123860.0,0.003]
[1759821254226,1.38848393,123870.0,123860.0,0.003]
[1759821254447,1.46848073,123870.0,123860.0,0.003]
[1759821254876,1.24048073,123870.0,123860.0,0.003]
[1759821255094,1.46848073,123870.0,123860.0,0.003]
[1759821256205,1.24048073,123870.0,123860.0,0.003]
[1759821256426,1.46848073,123870.0,123860.0,0.003]
[1759821258571,1.46847853,123870.0,123860.0,0.003]
[1759821258749,1.38848173,123870.0,123860.0,0.003]
[1759821266842,0.62227727,123870.0,123860.0,0.00792]
[1759821267046,0.85027789,123870.0,123860.0,0.00792]
[1759821267821,0.85027789,123870.0,123860.0,0.01596604]
[1759821268270,0.84274525,123870.0,123860.0,0.00792]
[1759821269607,0.61474525,123870.0,123860.0,0.00792]
[1759821269813,0.84274525,123870.0,123860.0,0.00792]
[1759821271050,0.92482205,123870.0,123860.0,0.003]
[1759821271267,0.93235606,123870.0,123860.0,0.003]
[1759821271703,0.93235606,123870.0,123860.0,0.00506]
[1759821271914,0.93235606,123870.0,123860.0,0.003]
[1759821272332,0.85235926,123870.0,123860.0,0.003]
[1759821272730,0.84274525,123870.0,123860.0,0.00808]
[1759821273191,0.84490525,123870.0,123860.0,0.00506]
[1759821273402,0.84274525,123870.0,123860.0,0.00808]
[1759821273819,0.92274205,123870.0,123860.0,0.00808]
[1759821274228,0.9076737,123870.0,123860.0,0.00808]
[1759821274635,0.9098337,123870.0,123860.0,0.00808]
[1759821274981,0.9098337,123870.0,123860.0,0.00506]
[1759821275596,0.9076737,123870.0,123860.0,0.00808]
[1759821276766,0.9098337,123870.0,123860.0,0.00808]
[1759821276922,0.6818337,123870.0,123860.0,0.00808]
[1759821277280,0.58858165,123870.0,123860.0,0.00808]
[1759821277490,0.81658165,123870.0,123860.0,0.00808]
[1759821279483,0.58858165,123870.0,123860.0,0.00808]
[1759821280590,0.59056165,123870.0,123860.0,0.003]
[1759821280794,0.59350165,123870.0,123860.0,0.003]
[1759821281432,0.67349845,123870.0,123860.0,0.003]
[1759821295165,0.68861233,123870.0,123860.0,0.003]
[1759821296167,0.69617094,123870.0,123860.0,0.003]
[1759821297429,0.69323094,123870.0,123860.0,0.003]
[1759821298799,0.69617094,123870.0,123860.0,0.003]
[1759821299657,0.69940265,123870.0,123860.0,0.003]
[1759821300219,0.92740265,123870.0,123860.0,0.003]
[1759821301958,0.84740585,123870.0,123860.0,0.003]
[1759821315766,0.84446585,123870.0,123860.0,0.003]
[1759821315965,0.84767585,123870.0,123860.0,0.003]
[1759821316166,0.84767311,123870.0,123860.0,0.003]
[1759821317359,0.84446311,123870.0,123860.0,0.003]
[1759821318183,0.92766991,123870.0,123860.0,0.003]
[1759821319363,0.69645991,123870.0,123860.0,0.003]
[1759821319558,0.92441991,123870.0,123860.0,0.0051]
[1759821319804,0.92441991,123870.0,123860.0,0.003]
[1759821319975,0.92762991,123870.0,123860.0,0.003]
[1759821320186,0.92441991,123870.0,123860.0,0.003]
[1759821321314,0.92762991,123870.0,123860.0,0.003]
[1759821322338,0.92441991,123870.0,123860.0,0.003]
[1759821322742,0.92441512,123870.0,123860.0,0.003]
[1759821323321,0.92762512,123870.0,123860.0,0.003]
[1759821323919,0.92441512,123870.0,123860.0,0.003]
[1759821324385,0.92762512,123870.0,123860.0,0.003]
[1759821324588,0.92441512,123870.0,123860.0,0.003]
[1759821325520,0.9168613,123870.0,123860.0,0.003]
[1759821325726,0.92762551,123870.0,123860.0,0.003]
[1759821327173,0.84762871,123870.0,123860.0,0.003]
[1759821327545,0.8400745,123870.0,123860.0,0.003]
[1759821327792,0.8476289,123870.0,123860.0,0.003]
[1759821329349,0.84762957,123870.0,123860.0,0.003]
[1759821329578,0.84441957,123870.0,123860.0,0.0051]
[1759821329800,0.84441957,123870.0,123860.0,0.00821]
[1759821330015,0.84441957,123870.0,123860.0,0.0051]
[1759821330413,0.61645957,123870.0,123860.0,0.003]
[1759821330653,0.84441957,123870.0,123860.0,0.0051]
[1759821331108,0.92441637,123870.0,123860.0,0.003]
[1759821331343,0.92441637,123870.0,123860.0,0.0051]
[1759821331766,0.84441957,123870.0,123860.0,0.0051]
[1759821331981,0.61645957,123870.0,123860.0,0.0051]
[1759821332193,0.84243957,123870.0,123860.0,0.00831]
[1759821332400,0.84243979,123870.0,123860.0,0.00831]
[1759821333005,0.84446979,123870.0,123860.0,0.0051]
[1759821333650,0.92446659,123870.0,123860.0,0.0051]
[1759821334510,0.84446979,123870.0,123860.0,0.00831]
[1759821335086,0.84446979,123870.0,123860.0,0.0051]
[1759821336319,0.84446979,123870.0,123860.0,0.00831]
[1759821336499,0.61650979,123870.0,123860.0,0.00831]
[1759821336701,0.84243979,123870.0,123860.0,0.00831]
[1759821337017,0.61447979,123870.0,123860.0,0.00831]
[1759821337263,0.84243979,123870.0,123860.0,0.00831]
[1759821337622,0.61447979,123870.0,123860.0,0.00831]
[1759821338049,0.84243979,123870.0,123860.0,0.00831]
[1759821338257,0.61447979,123870.0,123860.0,0.00831]
[1759821338426,0.84243979,123870.0,123860.0,0.00831]
[1759821340030,0.61447979,123870.0,123860.0,0.00831]
[1759821340737,0.84243979,123870.0,123860.0,0.00831]
[1759821341883,0.83488472,123870.0,123860.0,0.00831]
[1759821342086,0.60692472,123870.0,123860.0,0.00831]
[1759821342287,0.83488472,123870.0,123860.0,0.00831]
[1759821342647,0.60692472,123870.0,123860.0,0.00831]
[1759821342848,0.83488472,123870.0,123860.0,0.00831]
[1759821343188,0.83695472,123870.0,123860.0,0.0051]
[1759821345931,0.83695472,123870.0,123860.0,0.00808]
[1759821348312,0.83488472,123870.0,123860.0,0.00808]
[1759821349697,0.83695472,123870.0,123860.0,0.0051]
[1759821350703,0.83691472,123870.0,123860.0,0.0051]
[1759821351106,0.60899472,123870.0,123860.0,0.0051]
[1759821351278,0.83691472,123870.0,123860.0,0.0051]
[1759821352335,0.60899472,123870.0,123860.0,0.0051]
[1759821352698,0.83691472,123870.0,123860.0,0.0051]
[1759821355382,0.83691472,123870.0,123860.0,0.00808]
[1759821355796,0.83691472,123870.0,123860.0,0.0051]
[1759821356614,0.83691472,123870.0,123860.0,0.00808]
[1759821357263,0.83691472,123870.0,123860.0,0.0051]
[1759821359549,0.49691472,123870.0,123860.0,0.0051]
[1759821361386,0.50014472,123870.0,123860.0,0.003]
[1759821363629,0.5001503,123870.0,123860.0,0.003]
[1759821363834,0.4969203,123870.0,123860.0,0.003]
[1759821366637,0.5001503,123870.0,123860.0,0.003]
[1759821368020,0.50014959,123870.0,123860.0,0.003]
[1759821368420,0.27222959,123870.0,123860.0,0.003]
[1759821368664,0.50014959,123870.0,123860.0,0.003]
[1759821369035,0.27222959,123870.0,123860.0,0.003]
[1759821369381,0.35222639,123870.0,123860.0,0.003]
[1759821369588,0.50770752,123870.0,123860.0,0.003]
[1759821369800,1.0108294,123870.0,123860.0,0.003]
[1759821373028,0.98815524,123870.0,123860.0,0.003]
[1759821374559,1.01082154,123870.0,123860.0,0.003]
[1759821374999,1.09081834,123870.0,123860.0,0.003]
[1759821375212,1.09081809,123870.0,123860.0,0.003]
[1759821377946,0.58769621,123870.0,123860.0,0.003]
[1759821378175,1.09081809,123870.0,123860.0,0.003]
[1759821384319,1.0908175,123870.0,123860.0,0.003]
[1759821386497,1.09081615,123870.0,123860.0,0.003]
[1759821387358,0.58769427,123870.0,123860.0,0.003]
[1759821387584,1.09081615,123870.0,123860.0,0.003]
[1759821390216,1.09081668,123870.0,123860.0,0.003]
[1759821390853,0.5876948,123870.0,123860.0,0.003]
[1759821391046,0.5844648,123870.0,123860.0,0.00508]
[1759821391214,1.08758668,123870.0,123860.0,0.00508]
[1759821391400,1.00758988,123870.0,123860.0,0.003]
[1759821392079,1.01057988,123870.0,123860.0,0.003]
[1759821394167,0.507458,123870.0,123860.0,0.003]
[1759821394371,1.01057988,123870.0,123860.0,0.003]
[1759821395407,0.507458,123870.0,123860.0,0.003]
[1759821395624,1.01057988,123870.0,123860.0,0.003]
[1759821395830,1.09057668,123870.0,123860.0,0.003]
[1759821396042,1.08758668,123870.0,123860.0,0.003]
[1759821396676,1.09057668,123870.0,123860.0,0.003]
[1759821396890,1.01057988,123870.0,123860.0,0.003]
[1759821397456,1.01058966,123870.0,123860.0,0.003]
[1759821397930,1.00759966,123870.0,123860.0,0.003]
[1759821398132,0.50447778,123870.0,123860.0,0.003]
[1759821398328,1.01066966,123870.0,123860.0,0.003]
[1759821398895,0.78274966,123870.0,123860.0,0.003]
[1759821399095,1.01062966,123870.0,123860.0,0.003]
[1759821400360,0.78274966,123870.0,123860.0,0.003]
[1759821400567,0.50750778,123870.0,123860.0,0.003]
[1759821400747,1.01062966,123870.0,123860.0,0.003]
[1759821400946,0.78274966,123870.0,123860.0,0.003]
[1759821401166,0.50443778,123870.0,123860.0,0.003]
[1759821401381,0.50750778,123870.0,123860.0,0.003]
[1759821401602,0.58750458,123870.0,123860.0,0.003]
[1759821402642,0.58443458,123870.0,123860.0,0.003]
[1759821403305,0.58750458,123870.0,123860.0,0.003]
[1759821404167,0.58443458,123870.0,123860.0,0.003]
[1759821404577,0.58750458,123870.0,123860.0,0.003]
[1759821405590,0.58443458,123870.0,123860.0,0.003]
[1759821405806,0.58750458,123870.0,123860.0,0.003]
[1759821412902,0.58751029,123870.0,123860.0,0.003]
[1759821414023,0.35963029,123870.0,123860.0,0.003]
[1759821414167,0.58747029,123870.0,123860.0,0.003]
[1759821414574,0.35963029,123870.0,123860.0,0.003]
[1759821414773,0.58747029,123870.0,123860.0,0.003]
[1759821415579,0.35963029,123870.0,123860.0,0.003]
[1759821415773,0.58440029,123870.0,123860.0,0.003]
[1759821416066,0.50747349,123870.0,123860.0,0.003]
[1759821416523,0.27656349,123870.0,123860.0,0.003]
[1759821416712,0.50440349,123870.0,123860.0,0.003]
[1759821416923,0.50747349,123870.0,123860.0,0.003]
[1759821417331,0.50440349,123870.0,123860.0,0.003]
[1759821417741,0.50747349,123870.0,123860.0,0.003]
[1759821418680,0.27449349,123870.0,123860.0,0.00505]
[1759821418892,0.2669382,123870.0,123860.0,0.00803]
[1759821419111,0.4947782,123870.0,123860.0,0.00803]
[1759821420580,0.47965336,123870.0,123860.0,0.00803]
[1759821424545,0.49684219,123870.0,123860.0,0.00505]
[1759821424746,0.56917695,123870.0,123860.0,0.00505]
[1759821424953,0.57213695,123870.0,123860.0,0.003]
[1759821425134,0.56917695,123870.0,123860.0,0.003]
[1759821425337,0.55406812,123870.0,123860.0,0.003]
[1759821426398,0.56917734,123870.0,123860.0,0.003]
[1759821427253,0.55406812,123870.0,123860.0,0.003]
[1759821427456,0.56917799,123870.0,123860.0,0.003]
[1759821430744,1.07536722,123870.0,123860.0,0.003]
[1759821431357,0.57213799,123870.0,123860.0,0.003]
[1759821436165,0.57213799,123870.0,123860.0,1e-08]
[1759821436166,1.95630353,123870.0,123860.0,1e-08]
[1759821437363,0.19162453,123860.0,123850.0,0.0002]
[1759821437563,0.94405171,123860.0,123850.0,0.00034969]
[1759821437768,0.94909171,123860.0,123850.0,0.00034969]
[1759821437987,0.1614987,123840.0,123830.0,0.0002]
[1759821438195,0.1614987,123840.0,123820.0,0.05896749]
[1759821438196,0.16151174,123830.0,123820.0,0.05896749]
[1759821438402,0.27901484,123830.0,123820.0,0.06094749]
[1759821438603,0.27901484,123830.0,123820.0,0.06174744]
[1759821438805,0.3032575,123830.0,123820.0,0.00297995]
[1759821439641,0.3032575,123830.0,123820.0,0.00099995]
[1759821440057,0.3032575,123830.0,123820.0,0.00297995]
[1759821440678,0.3072575,123830.0,123820.0,0.00497995]
[1759821441093,0.81344673,123830.0,123820.0,0.00299995]
[1759821441265,0.81444673,123830.0,123820.0,0.00299995]
[1759821441962,1.18459863,123830.0,123820.0,0.00299995]
[1759821442782,1.19255838,123830.0,123820.0,0.00299995]
[1759821443031,1.27647838,123830.0,123820.0,0.00299995]
[1759821443240,1.29154104,123830.0,123820.0,0.00299995]
[1759821443448,1.27647838,123830.0,123820.0,0.00299995]
[1759821443834,1.33667585,123830.0,123820.0,0.00299995]
[1759821444037,1.56447585,123830.0,123820.0,0.00299995]
[1759821444242,1.25275585,123830.0,123820.0,0.00299995]
[1759821444443,1.56447585,123830.0,123820.0,0.00299995]
[1759821446165,0.16153784,123810.0,123800.0,0.14088181]
[1759821446398,0.4745799,123810.0,123800.0,0.14088181]
[1759821446641,0.4775399,123810.0,123800.0,0.14088181]
[1759821446876,0.50178895,123810.0,123800.0,0.14088181]
[1759821447136,0.54182267,123810.0,123800.0,0.14088181]
[1759821447344,0.8172119,123810.0,123800.0,0.14088181]
[1759821447564,1.0510519,123810.0,123800.0,0.14188181]
[1759821447797,1.0510519,123810.0,123760.0,0.00321]
[1759821447798,0.16966954,123770.0,123760.0,0.00321]
[1759821448006,0.8207116,123770.0,123760.0,0.00321]
[1759821448209,0.8207116,123770.0,123760.0,0.00519]
[1759821448402,0.61704742,123770.0,123760.0,0.00048656]
[1759821448623,0.16161616,123750.0,123740.0,0.00698565]
[1759821448826,0.81293822,123750.0,123740.0,0.00369617]